[Event "Late-Titled-Tuesday-Blitz-March-12-2024"]
[Site "Chess.com"]
[Date "2024.03.12"]
[Round "3"]
[White "Vladimir_Zakhartsov"]
[Black "RandomNoob04"]
[Result "1-0"]
[WhiteElo "2915"]
[BlackElo "2622"]
[TimeControl "180+1"]
[EndTime "14:23:37 PDT"]
[Termination "Vladimir_Zakhartsov won by checkmate"]

1. d4 {[%clk 0:02:57.6]} 1... Nf6 {[%clk 0:03:00.7]} 2. c4 {[%clk 0:02:57.4]}
2... c5 {[%clk 0:03:01.5]} 3. d5 {[%clk 0:02:57.6]} 3... b5 {[%clk 0:03:01.9]}
4. cxb5 {[%clk 0:02:57.8]} 4... a6 {[%clk 0:03:02.5]} 5. e3 {[%clk 0:02:58.4]}
5... axb5 {[%clk 0:03:03.1]} 6. Bxb5 {[%clk 0:02:59.1]} 6... Qa5+ {[%clk
0:03:03.9]} 7. Nc3 {[%clk 0:02:59.4]} 7... Bb7 {[%clk 0:03:04.8]} 8. Bd2 {[%clk
0:02:57.1]} 8... Qb6 {[%clk 0:03:05.4]} 9. a4 {[%clk 0:02:56.8]} 9... Nxd5
{[%clk 0:03:04.3]} 10. Nf3 {[%clk 0:02:57.1]} 10... e6 {[%clk 0:03:04.3]} 11.
O-O {[%clk 0:02:55.7]} 11... Nf6 {[%clk 0:03:04.6]} 12. Re1 {[%clk 0:02:42.2]}
12... Be7 {[%clk 0:03:03.7]} 13. e4 {[%clk 0:02:42.4]} 13... O-O {[%clk
0:03:01.6]} 14. Bg5 {[%clk 0:02:34.5]} 14... d6 {[%clk 0:02:54.8]} 15. e5 {[%clk
0:02:32.8]} 15... dxe5 {[%clk 0:02:55.2]} 16. Nxe5 {[%clk 0:02:33.4]} 16... h6
{[%clk 0:02:48.3]} 17. Bf4 {[%clk 0:02:26.1]} 17... Rd8 {[%clk 0:02:36.8]} 18.
Qe2 {[%clk 0:02:08.9]} 18... Nd5 {[%clk 0:02:28.8]} 19. Bg3 {[%clk 0:01:54.9]}
19... Nxc3 {[%clk 0:02:10.6]} 20. bxc3 {[%clk 0:01:55.8]} 20... Nc6 {[%clk
0:02:10.4]} 21. Nxf7 {[%clk 0:01:43.7]} 21... Kxf7 {[%clk 0:01:52.2]} 22. Qxe6+
{[%clk 0:01:43]} 22... Kf8 {[%clk 0:01:52.9]} 23. Bc4 {[%clk 0:01:38.1]} 23...
Ke8 {[%clk 0:01:46.3]} 24. Qf7+ {[%clk 0:01:37.1]} 24... Kd7 {[%clk 0:01:46.7]}
25. Be6# {[%clk 0:01:36.4]} 1-0

[Event "Late-Titled-Tuesday-Blitz-March-12-2024"]
[Site "Chess.com"]
[Date "2024.03.12"]
[Round "3"]
[White "RantomOpening"]
[Black "Eliteplayer3"]
[Result "1-0"]
[WhiteElo "2576"]
[BlackElo "2255"]
[TimeControl "180+1"]
[EndTime "14:23:43 PDT"]
[Termination "RantomOpening won by resignation"]

1. e4 {[%clk 0:03:00.7]} 1... c6 {[%clk 0:02:59.4]} 2. d4 {[%clk 0:02:59.3]}
2... d5 {[%clk 0:02:59.9]} 3. Nc3 {[%clk 0:02:59.3]} 3... dxe4 {[%clk
0:02:59.5]} 4. Nxe4 {[%clk 0:03:00.2]} 4... Nf6 {[%clk 0:02:59.6]} 5. Nxf6+
{[%clk 0:03:00.3]} 5... exf6 {[%clk 0:03:00.5]} 6. Bd3 {[%clk 0:03:00.3]} 6...
Qxd4 {[%clk 0:02:58.3]} 7. Nf3 {[%clk 0:02:59.8]} 7... Qd8 {[%clk 0:02:56.6]} 8.
O-O {[%clk 0:02:56.1]} 8... Be7 {[%clk 0:02:56.3]} 9. c3 {[%clk 0:02:51.4]} 9...
O-O {[%clk 0:02:55.8]} 10. Qc2 {[%clk 0:02:50.5]} 10... g6 {[%clk 0:02:51.6]}
11. Bh6 {[%clk 0:02:49.6]} 11... Re8 {[%clk 0:02:50.4]} 12. Rad1 {[%clk
0:02:49.5]} 12... Qc7 {[%clk 0:02:47.2]} 13. Rfe1 {[%clk 0:02:49.1]} 13... Be6
{[%clk 0:02:41.3]} 14. Rxe6 {[%clk 0:02:46.4]} 14... fxe6 {[%clk 0:02:37.6]} 15.
Bxg6 {[%clk 0:02:46.3]} 15... Bf8 {[%clk 0:02:31.4]} 16. Bxe8 {[%clk 0:02:33.6]}
16... Bxh6 {[%clk 0:02:31.2]} 17. Qe4 {[%clk 0:02:26.1]} 17... Qe7 {[%clk
0:02:26]} 18. Bh5 {[%clk 0:02:12.3]} 18... Nd7 {[%clk 0:02:23.5]} 19. Bg4 {[%clk
0:02:11.8]} 19... Nf8 {[%clk 0:02:20]} 20. Nd4 {[%clk 0:02:07.9]} 20... Rd8
{[%clk 0:02:14.9]} 21. Re1 {[%clk 0:01:59.3]} 21... e5 {[%clk 0:01:53.6]} 22.
Nf5 {[%clk 0:01:57.2]} 1-0

[Event "Late-Titled-Tuesday-Blitz-March-12-2024"]
[Site "Chess.com"]
[Date "2024.03.12"]
[Round "3"]
[White "NMJeevanK"]
[Black "MatthewG-p4p"]
[Result "0-1"]
[WhiteElo "2610"]
[BlackElo "2911"]
[TimeControl "180+1"]
[EndTime "14:24:12 PDT"]
[Termination "MatthewG-p4p won by resignation"]

1. e4 {[%clk 0:03:00.9]} 1... e6 {[%clk 0:02:55.4]} 2. d4 {[%clk 0:02:59.4]}
2... d5 {[%clk 0:02:54.2]} 3. exd5 {[%clk 0:03:00.3]} 3... exd5 {[%clk
0:02:55.1]} 4. Nf3 {[%clk 0:03:00.1]} 4... Nf6 {[%clk 0:02:56]} 5. Bd3 {[%clk
0:03:00.2]} 5... c5 {[%clk 0:02:56.8]} 6. dxc5 {[%clk 0:02:58.1]} 6... Bxc5
{[%clk 0:02:57.7]} 7. O-O {[%clk 0:02:56.8]} 7... O-O {[%clk 0:02:58.3]} 8. h3
{[%clk 0:02:56.7]} 8... Nc6 {[%clk 0:02:58.8]} 9. Bg5 {[%clk 0:02:53.5]} 9... h6
{[%clk 0:02:59]} 10. Bxf6 {[%clk 0:02:53.7]} 10... Qxf6 {[%clk 0:02:59.9]} 11.
Nc3 {[%clk 0:02:54.1]} 11... Be6 {[%clk 0:03:00]} 12. a3 {[%clk 0:02:53.5]}
12... Rfe8 {[%clk 0:02:59.9]} 13. Qd2 {[%clk 0:02:49.2]} 13... Rad8 {[%clk
0:02:58.8]} 14. Nh2 {[%clk 0:02:35.3]} 14... Ne5 {[%clk 0:02:55.1]} 15. Rae1
{[%clk 0:02:33]} 15... Nc4 {[%clk 0:02:49]} 16. Bxc4 {[%clk 0:02:29]} 16... dxc4
{[%clk 0:02:49.7]} 17. Qe2 {[%clk 0:02:24.1]} 17... Bxa3 {[%clk 0:02:35.4]} 18.
Ne4 {[%clk 0:02:17.9]} 18... Qxb2 {[%clk 0:02:33.8]} 19. Rb1 {[%clk 0:02:17.5]}
19... Qe5 {[%clk 0:02:26.2]} 20. Nf3 {[%clk 0:02:07.7]} 20... Qc7 {[%clk
0:02:24]} 21. Qe3 {[%clk 0:01:52.2]} 21... Bf8 {[%clk 0:02:20]} 22. Qxa7 {[%clk
0:01:50]} 22... Bd5 {[%clk 0:02:20.4]} 23. Ng3 {[%clk 0:01:41.9]} 23... Bc5
{[%clk 0:02:11.2]} 24. Qa4 {[%clk 0:01:11.7]} 24... Bxf3 {[%clk 0:02:10.2]} 25.
Rfe1 {[%clk 0:00:54.6]} 25... Rxe1+ {[%clk 0:02:07.5]} 26. Rxe1 {[%clk
0:00:55.5]} 26... Qxg3 {[%clk 0:02:05.8]} 0-1

[Event "Late-Titled-Tuesday-Blitz-March-12-2024"]
[Site "Chess.com"]
[Date "2024.03.12"]
[Round "3"]
[White "Ready4abattle"]
[Black "yaguigor"]
[Result "0-1"]
[WhiteElo "2416"]
[BlackElo "2615"]
[TimeControl "180+1"]
[EndTime "14:24:44 PDT"]
[Termination "yaguigor won by resignation"]

1. e4 {[%clk 0:03:00.9]} 1... e5 {[%clk 0:02:56.2]} 2. Nf3 {[%clk 0:02:57.9]}
2... Nc6 {[%clk 0:02:56.6]} 3. Bc4 {[%clk 0:02:58.5]} 3... Bc5 {[%clk
0:02:55.6]} 4. b4 {[%clk 0:02:58.4]} 4... Bxb4 {[%clk 0:02:55.1]} 5. c3 {[%clk
0:02:59.1]} 5... Ba5 {[%clk 0:02:55.3]} 6. Qb3 {[%clk 0:02:59.2]} 6... Qe7
{[%clk 0:02:50.8]} 7. d4 {[%clk 0:02:59]} 7... Nxd4 {[%clk 0:02:32.4]} 8. Nxd4
{[%clk 0:02:57.5]} 8... exd4 {[%clk 0:02:32.4]} 9. O-O {[%clk 0:02:57.2]} 9...
Bb6 {[%clk 0:02:22.7]} 10. cxd4 {[%clk 0:02:56.2]} 10... Bxd4 {[%clk 0:02:20.3]}
11. Nc3 {[%clk 0:02:56.7]} 11... c6 {[%clk 0:02:17]} 12. Ba3 {[%clk 0:02:52.3]}
12... d6 {[%clk 0:02:13.4]} 13. Rad1 {[%clk 0:02:46.5]} 13... Bc5 {[%clk
0:02:12.9]} 14. Bxc5 {[%clk 0:02:27.7]} 14... dxc5 {[%clk 0:02:11.8]} 15. e5
{[%clk 0:02:28.4]} 15... Nh6 {[%clk 0:02:08.4]} 16. Rfe1 {[%clk 0:02:13.1]}
16... O-O {[%clk 0:01:50.9]} 17. a4 {[%clk 0:01:56]} 17... Nf5 {[%clk
0:01:47.7]} 18. Ne4 {[%clk 0:01:47.3]} 18... Nd4 {[%clk 0:01:36.1]} 19. Qg3
{[%clk 0:01:43]} 19... Bf5 {[%clk 0:01:29.8]} 20. Nd6 {[%clk 0:01:25.9]} 20...
Bg6 {[%clk 0:01:28.1]} 21. h4 {[%clk 0:01:19.9]} 21... Rad8 {[%clk 0:01:21.1]}
22. h5 {[%clk 0:01:13.8]} 22... Bc2 {[%clk 0:01:19.3]} 23. Rd2 {[%clk
0:01:03.6]} 23... Rxd6 {[%clk 0:01:17.5]} 0-1

[Event "Late-Titled-Tuesday-Blitz-March-12-2024"]
[Site "Chess.com"]
[Date "2024.03.12"]
[Round "3"]
[White "buenamor1972"]
[Black "Synctel"]
[Result "1-0"]
[WhiteElo "2361"]
[BlackElo "1872"]
[TimeControl "180+1"]
[EndTime "14:25:04 PDT"]
[Termination "buenamor1972 won on time"]

1. d4 {[%clk 0:03:00.9]} 1... Nf6 {[%clk 0:02:58.5]} 2. c4 {[%clk 0:03:00.4]}
2... e6 {[%clk 0:02:59]} 3. Nc3 {[%clk 0:03:00.5]} 3... Bb4 {[%clk 0:02:59.5]}
4. f3 {[%clk 0:03:00.8]} 4... d5 {[%clk 0:02:54.6]} 5. a3 {[%clk 0:03:00.4]}
5... Bxc3+ {[%clk 0:02:51.7]} 6. bxc3 {[%clk 0:02:58.6]} 6... b6 {[%clk
0:02:14.9]} 7. cxd5 {[%clk 0:02:57.4]} 7... exd5 {[%clk 0:02:13]} 8. e3 {[%clk
0:02:57.5]} 8... O-O {[%clk 0:02:04.4]} 9. Bd3 {[%clk 0:02:57.3]} 9... Re8
{[%clk 0:01:38.7]} 10. Ne2 {[%clk 0:02:57.7]} 10... c5 {[%clk 0:01:27.6]} 11.
O-O {[%clk 0:02:57.6]} 11... Ba6 {[%clk 0:01:20.2]} 12. Ng3 {[%clk 0:02:56.3]}
12... Bxd3 {[%clk 0:01:14]} 13. Qxd3 {[%clk 0:02:57.2]} 13... c4 {[%clk
0:01:03.6]} 14. Qc2 {[%clk 0:02:55.3]} 14... Nc6 {[%clk 0:01:04.2]} 15. Bd2
{[%clk 0:02:55.3]} 15... g6 {[%clk 0:00:59.5]} 16. Rae1 {[%clk 0:02:47]} 16...
Qd6 {[%clk 0:00:43.3]} 17. e4 {[%clk 0:02:45.9]} 17... Qxa3 {[%clk 0:00:35.9]}
18. e5 {[%clk 0:02:45.4]} 18... Nd7 {[%clk 0:00:33.7]} 19. f4 {[%clk 0:02:45.9]}
19... Nf8 {[%clk 0:00:26.7]} 20. f5 {[%clk 0:02:45.3]} 20... b5 {[%clk 0:00:23]}
21. Bh6 {[%clk 0:02:39.5]} 21... b4 {[%clk 0:00:17.9]} 22. fxg6 {[%clk
0:02:37.2]} 22... Nxg6 {[%clk 0:00:13]} 23. Qf5 {[%clk 0:02:33]} 23... Nd8
{[%clk 0:00:10.1]} 24. e6 {[%clk 0:02:05.4]} 24... Nxe6 {[%clk 0:00:02]} 25.
Qxf7+ {[%clk 0:02:02.2]} 25... Kh8 {[%clk 0:00:02.6]} 26. Rxe6 {[%clk 0:02:02]}
1-0

[Event "Late-Titled-Tuesday-Blitz-March-12-2024"]
[Site "Chess.com"]
[Date "2024.03.12"]
[Round "3"]
[White "nj123456"]
[Black "IraZyne"]
[Result "1-0"]
[WhiteElo "2432"]
[BlackElo "2336"]
[TimeControl "180+1"]
[EndTime "14:25:05 PDT"]
[Termination "nj123456 won by resignation"]

1. e4 {[%clk 0:02:54.9]} 1... Nf6 {[%clk 0:02:46.1]} 2. e5 {[%clk 0:02:53.6]}
2... Nd5 {[%clk 0:02:45.9]} 3. d4 {[%clk 0:02:54.5]} 3... d6 {[%clk 0:02:45]} 4.
Nf3 {[%clk 0:02:55.4]} 4... Bg4 {[%clk 0:02:44.9]} 5. Be2 {[%clk 0:02:54.7]}
5... c6 {[%clk 0:02:44.9]} 6. O-O {[%clk 0:02:54.2]} 6... Bxf3 {[%clk
0:02:44.5]} 7. Bxf3 {[%clk 0:02:54.1]} 7... dxe5 {[%clk 0:02:45.1]} 8. dxe5
{[%clk 0:02:55]} 8... e6 {[%clk 0:02:45.4]} 9. Re1 {[%clk 0:02:54.9]} 9... Nd7
{[%clk 0:02:44.8]} 10. c4 {[%clk 0:02:48.5]} 10... Ne7 {[%clk 0:02:44.2]} 11.
Nc3 {[%clk 0:02:47]} 11... Ng6 {[%clk 0:02:43.3]} 12. Qe2 {[%clk 0:02:15.7]}
12... Ndxe5 {[%clk 0:02:30.5]} 13. Be4 {[%clk 0:02:15.8]} 13... Bc5 {[%clk
0:02:23.8]} 14. Rd1 {[%clk 0:02:04.3]} 14... Qe7 {[%clk 0:02:16.9]} 15. Bxg6
{[%clk 0:02:01.6]} 15... Nxg6 {[%clk 0:02:15.3]} 16. Ne4 {[%clk 0:02:01.8]}
16... O-O {[%clk 0:02:13.5]} 17. Bg5 {[%clk 0:01:58.1]} 17... f6 {[%clk
0:02:06.1]} 18. Nxc5 {[%clk 0:01:54.5]} 18... Qxc5 {[%clk 0:02:02.7]} 19. Qxe6+
{[%clk 0:01:54.3]} 19... Kh8 {[%clk 0:02:02.8]} 20. Be3 {[%clk 0:01:54.6]} 20...
Qb4 {[%clk 0:02:00.3]} 21. b3 {[%clk 0:01:33.5]} 21... Rae8 {[%clk 0:01:59.2]}
22. Qf5 {[%clk 0:01:26.6]} 22... Re7 {[%clk 0:01:55.8]} 23. g3 {[%clk
0:01:24.3]} 23... b6 {[%clk 0:01:48.1]} 24. h4 {[%clk 0:01:24.2]} 24... Rfe8
{[%clk 0:01:44.8]} 25. h5 {[%clk 0:01:23.3]} 25... Nf8 {[%clk 0:01:43.6]} 26. h6
{[%clk 0:01:21]} 26... Re5 {[%clk 0:01:41.2]} 27. hxg7+ {[%clk 0:01:19.6]} 27...
Kxg7 {[%clk 0:01:41.1]} 28. Qf3 {[%clk 0:01:20.1]} 28... R5e6 {[%clk 0:01:27.8]}
29. Bd4 {[%clk 0:01:18.6]} 29... Qe7 {[%clk 0:01:25.1]} 30. Kg2 {[%clk 0:01:17]}
30... c5 {[%clk 0:01:24.6]} 31. Bc3 {[%clk 0:01:16.2]} 31... Ng6 {[%clk
0:01:24.1]} 32. Rh1 {[%clk 0:01:12.2]} 32... Re2 {[%clk 0:01:15.7]} 33. Bxf6+
{[%clk 0:01:07.7]} 33... Qxf6 {[%clk 0:01:14.8]} 34. Rxh7+ {[%clk 0:01:07.8]}
1-0

[Event "Late-Titled-Tuesday-Blitz-March-12-2024"]
[Site "Chess.com"]
[Date "2024.03.12"]
[Round "3"]
[White "BebeBonito2022"]
[Black "Noki102"]
[Result "0-1"]
[WhiteElo "2307"]
[BlackElo "2552"]
[TimeControl "180+1"]
[EndTime "14:25:09 PDT"]
[Termination "Noki102 won by resignation"]

1. d4 {[%clk 0:03:00.9]} 1... d5 {[%clk 0:03:00.2]} 2. c4 {[%clk 0:03:01.1]}
2... e6 {[%clk 0:03:00.4]} 3. Nc3 {[%clk 0:03:01.3]} 3... Bb4 {[%clk 0:03:00.9]}
4. e3 {[%clk 0:03:01]} 4... Nf6 {[%clk 0:03:01.1]} 5. Nf3 {[%clk 0:03:00.8]}
5... O-O {[%clk 0:03:01.4]} 6. Bd3 {[%clk 0:03:00.1]} 6... dxc4 {[%clk
0:03:00.6]} 7. Bxc4 {[%clk 0:03:00.5]} 7... b6 {[%clk 0:03:01.5]} 8. O-O {[%clk
0:02:58.2]} 8... Bb7 {[%clk 0:03:02]} 9. Qe2 {[%clk 0:02:39.6]} 9... Nbd7 {[%clk
0:02:58.7]} 10. Rd1 {[%clk 0:02:38.2]} 10... Ne4 {[%clk 0:02:50.7]} 11. Nxe4
{[%clk 0:02:31]} 11... Bxe4 {[%clk 0:02:51.6]} 12. Bd2 {[%clk 0:02:14.7]} 12...
Bd6 {[%clk 0:02:46.1]} 13. Bc3 {[%clk 0:02:10.9]} 13... Qe7 {[%clk 0:02:40.4]}
14. Nd2 {[%clk 0:02:09.2]} 14... Bb7 {[%clk 0:02:32.5]} 15. e4 {[%clk
0:02:09.4]} 15... e5 {[%clk 0:02:27.7]} 16. d5 {[%clk 0:01:53.5]} 16... a6
{[%clk 0:02:27.2]} 17. a3 {[%clk 0:01:39.7]} 17... Nc5 {[%clk 0:02:15.9]} 18. b4
{[%clk 0:01:21.8]} 18... Na4 {[%clk 0:02:15.8]} 19. Rac1 {[%clk 0:01:22.4]}
19... Nxc3 {[%clk 0:02:14.6]} 20. Rxc3 {[%clk 0:01:22.7]} 20... a5 {[%clk
0:02:15]} 21. b5 {[%clk 0:00:27.6]} 21... Bxa3 {[%clk 0:02:14.4]} 22. f4 {[%clk
0:00:28.2]} 22... Bc5+ {[%clk 0:02:11.8]} 23. Kh1 {[%clk 0:00:28.3]} 23... exf4
{[%clk 0:02:12.3]} 24. e5 {[%clk 0:00:24.5]} 24... Rae8 {[%clk 0:01:52.9]} 25.
Re1 {[%clk 0:00:19.2]} 25... Bd4 {[%clk 0:01:46.7]} 26. Rh3 {[%clk 0:00:18.6]}
26... Qxe5 {[%clk 0:01:40.3]} 0-1

[Event "Late-Titled-Tuesday-Blitz-March-12-2024"]
[Site "Chess.com"]
[Date "2024.03.12"]
[Round "3"]
[White "ITheOnlyME"]
[Black "Boundless_Strike"]
[Result "1-0"]
[WhiteElo "2407"]
[BlackElo "2594"]
[TimeControl "180+1"]
[EndTime "14:25:17 PDT"]
[Termination "ITheOnlyME won by resignation"]

1. d4 {[%clk 0:03:00.9]} 1... e5 {[%clk 0:02:58.7]} 2. dxe5 {[%clk 0:03:00.9]}
2... d6 {[%clk 0:02:58.5]} 3. exd6 {[%clk 0:02:58]} 3... Bxd6 {[%clk 0:02:59.4]}
4. e4 {[%clk 0:02:58.4]} 4... Nc6 {[%clk 0:02:58.2]} 5. Nc3 {[%clk 0:02:58.7]}
5... Qe7 {[%clk 0:02:58]} 6. Bb5 {[%clk 0:02:57.9]} 6... Bd7 {[%clk 0:02:58.2]}
7. Nf3 {[%clk 0:02:50.5]} 7... O-O-O {[%clk 0:02:51.6]} 8. Qe2 {[%clk
0:02:50.4]} 8... Nf6 {[%clk 0:02:48.6]} 9. Bg5 {[%clk 0:02:50.5]} 9... h6 {[%clk
0:02:40]} 10. Bxf6 {[%clk 0:02:50.6]} 10... Qxf6 {[%clk 0:02:31.1]} 11. O-O-O
{[%clk 0:02:50.8]} 11... Rhe8 {[%clk 0:02:28.1]} 12. Rhe1 {[%clk 0:02:36.5]}
12... Kb8 {[%clk 0:02:21.5]} 13. Kb1 {[%clk 0:02:36.2]} 13... a6 {[%clk
0:02:16.2]} 14. Bxc6 {[%clk 0:02:21.3]} 14... Bxc6 {[%clk 0:02:15.4]} 15. Qc4
{[%clk 0:02:22]} 15... g5 {[%clk 0:01:34]} 16. e5 {[%clk 0:02:10.9]} 16... Bxe5
{[%clk 0:01:23.4]} 17. Rxd8+ {[%clk 0:02:11.5]} 17... Qxd8 {[%clk 0:01:16.7]}
18. Nxe5 {[%clk 0:02:09.5]} 18... Bxg2 {[%clk 0:01:15.2]} 19. Rd1 {[%clk
0:02:02.9]} 19... Qe7 {[%clk 0:01:13.9]} 20. Nxf7 {[%clk 0:01:52.9]} 20... Bf3
{[%clk 0:01:10.9]} 21. Rc1 {[%clk 0:01:42.9]} 21... Qf6 {[%clk 0:01:10.4]} 22.
b4 {[%clk 0:01:12]} 22... Bh5 {[%clk 0:01:00.7]} 23. Qxc7+ {[%clk 0:01:05.2]}
23... Kxc7 {[%clk 0:00:57.2]} 24. Nd5+ {[%clk 0:01:05.7]} 24... Kb8 {[%clk
0:00:52.2]} 25. Nxf6 {[%clk 0:01:06.6]} 25... Bxf7 {[%clk 0:00:53]} 26. Nxe8
{[%clk 0:01:07.2]} 26... Bxe8 {[%clk 0:00:53.9]} 27. Re1 {[%clk 0:01:06.8]}
27... Bc6 {[%clk 0:00:53.8]} 1-0

[Event "Late-Titled-Tuesday-Blitz-March-12-2024"]
[Site "Chess.com"]
[Date "2024.03.12"]
[Round "3"]
[White "xasid81"]
[Black "Mbneu"]
[Result "1-0"]
[WhiteElo "2575"]
[BlackElo "2248"]
[TimeControl "180+1"]
[EndTime "14:25:18 PDT"]
[Termination "xasid81 won by resignation"]

1. Nc3 {[%clk 0:02:57.6]} 1... c5 {[%clk 0:02:54.9]} 2. e4 {[%clk 0:02:57]} 2...
Nc6 {[%clk 0:02:52.4]} 3. h3 {[%clk 0:02:57.7]} 3... g6 {[%clk 0:02:50]} 4. Bb5
{[%clk 0:02:57]} 4... Nd4 {[%clk 0:02:48.9]} 5. Bc4 {[%clk 0:02:56.5]} 5... e6
{[%clk 0:02:47]} 6. Nf3 {[%clk 0:02:56.6]} 6... Ne7 {[%clk 0:02:45]} 7. Nxd4
{[%clk 0:02:56]} 7... cxd4 {[%clk 0:02:45.1]} 8. Ne2 {[%clk 0:02:54.6]} 8... Qc7
{[%clk 0:02:43.6]} 9. d3 {[%clk 0:02:53.1]} 9... Bg7 {[%clk 0:02:41]} 10. O-O
{[%clk 0:02:52.7]} 10... a6 {[%clk 0:02:39.4]} 11. a4 {[%clk 0:02:52.1]} 11...
d5 {[%clk 0:02:34]} 12. exd5 {[%clk 0:02:51.6]} 12... exd5 {[%clk 0:02:33.7]}
13. Bb3 {[%clk 0:02:51.3]} 13... O-O {[%clk 0:02:33]} 14. Nf4 {[%clk 0:02:49]}
14... Qd6 {[%clk 0:02:17.5]} 15. Qf3 {[%clk 0:02:47.5]} 15... Be6 {[%clk
0:02:15.8]} 16. Re1 {[%clk 0:02:47]} 16... Rae8 {[%clk 0:02:08]} 17. Bd2 {[%clk
0:02:45.6]} 17... Nc6 {[%clk 0:02:06.6]} 18. Nxd5 {[%clk 0:02:35.8]} 18... Ne5
{[%clk 0:01:42.5]} 19. Nf6+ {[%clk 0:02:33.5]} 19... Kh8 {[%clk 0:01:35.6]} 20.
Qf4 {[%clk 0:02:27.9]} 20... Bxb3 {[%clk 0:01:25.3]} 21. Nxe8 {[%clk 0:02:26.4]}
21... Rxe8 {[%clk 0:01:24.8]} 22. cxb3 {[%clk 0:02:25.2]} 22... f6 {[%clk
0:01:20.2]} 23. Qg3 {[%clk 0:02:22.7]} 23... Rf8 {[%clk 0:01:09.2]} 24. Rac1
{[%clk 0:02:12.2]} 24... Qd5 {[%clk 0:01:07.4]} 25. f4 {[%clk 0:02:03.7]} 25...
Nc6 {[%clk 0:01:05.6]} 26. Rc4 {[%clk 0:01:54]} 26... b5 {[%clk 0:01:01.1]} 27.
axb5 {[%clk 0:01:54.9]} 27... axb5 {[%clk 0:01:00.6]} 28. Rcc1 {[%clk
0:01:54.9]} 28... f5 {[%clk 0:00:20.2]} 29. Qf3 {[%clk 0:01:52.8]} 29... Qxf3
{[%clk 0:00:19.2]} 30. gxf3 {[%clk 0:01:53.7]} 30... Nd8 {[%clk 0:00:18.8]} 31.
Bb4 {[%clk 0:01:51.1]} 31... Rg8 {[%clk 0:00:16.8]} 32. Rc8 {[%clk 0:01:50.5]}
32... Nc6 {[%clk 0:00:15.3]} 33. Rxc6 {[%clk 0:01:48.8]} 1-0

[Event "Late-Titled-Tuesday-Blitz-March-12-2024"]
[Site "Chess.com"]
[Date "2024.03.12"]
[Round "3"]
[White "1g60-1"]
[Black "Kavyev_Ruslan"]
[Result "1-0"]
[WhiteElo "2334"]
[BlackElo "2518"]
[TimeControl "180+1"]
[EndTime "14:25:21 PDT"]
[Termination "1g60-1 won by checkmate"]

1. e4 {[%clk 0:03:00.9]} 1... c5 {[%clk 0:02:59.7]} 2. Nf3 {[%clk 0:03:01.2]}
2... Nc6 {[%clk 0:02:59.1]} 3. d4 {[%clk 0:03:00.4]} 3... cxd4 {[%clk 0:03:00]}
4. Nxd4 {[%clk 0:03:01.2]} 4... Nf6 {[%clk 0:02:59.7]} 5. Nc3 {[%clk 0:03:01.5]}
5... e5 {[%clk 0:03:00.3]} 6. Ndb5 {[%clk 0:03:01.9]} 6... d6 {[%clk 0:03:00.4]}
7. Bg5 {[%clk 0:03:01.9]} 7... a6 {[%clk 0:03:00.2]} 8. Bxf6 {[%clk 0:03:02.1]}
8... gxf6 {[%clk 0:02:59.6]} 9. Na3 {[%clk 0:03:02.7]} 9... Bg7 {[%clk
0:02:57.5]} 10. Nd5 {[%clk 0:03:03]} 10... f5 {[%clk 0:02:56.2]} 11. Bd3 {[%clk
0:03:02.9]} 11... fxe4 {[%clk 0:02:54.5]} 12. Bxe4 {[%clk 0:03:03]} 12... Be6
{[%clk 0:02:49.5]} 13. c3 {[%clk 0:02:55.6]} 13... Ne7 {[%clk 0:02:29.9]} 14.
O-O {[%clk 0:02:52.3]} 14... f5 {[%clk 0:02:18.2]} 15. Nxe7 {[%clk 0:02:52.3]}
15... Qxe7 {[%clk 0:02:19.1]} 16. Bd5 {[%clk 0:02:51.6]} 16... O-O {[%clk
0:02:13.9]} 17. Qb3 {[%clk 0:02:50.5]} 17... Bxd5 {[%clk 0:02:11]} 18. Qxd5+
{[%clk 0:02:51.4]} 18... Kh8 {[%clk 0:02:11.3]} 19. Rad1 {[%clk 0:02:49.4]}
19... Rg8 {[%clk 0:01:23.2]} 20. Nc4 {[%clk 0:02:36.8]} 20... Qg5 {[%clk
0:01:13.8]} 21. Nxd6 {[%clk 0:02:33.9]} 21... Raf8 {[%clk 0:00:56.7]} 22. Nf7+
{[%clk 0:02:26.8]} 22... Rxf7 {[%clk 0:00:57]} 23. Qxf7 {[%clk 0:02:27.7]} 23...
Bf6 {[%clk 0:00:57.6]} 24. g3 {[%clk 0:02:24.5]} 24... f4 {[%clk 0:00:49]} 25.
Rd6 {[%clk 0:02:13]} 25... Bd8 {[%clk 0:00:20.6]} 26. Rd7 {[%clk 0:02:02.5]}
26... Qh6 {[%clk 0:00:10.3]} 27. Rfd1 {[%clk 0:01:50.5]} 27... Bh4 {[%clk
0:00:10.1]} 28. R1d6 {[%clk 0:01:40.9]} 28... Qg5 {[%clk 0:00:07.3]} 29. Qxh7#
{[%clk 0:01:40.4]} 1-0

[Event "Late-Titled-Tuesday-Blitz-March-12-2024"]
[Site "Chess.com"]
[Date "2024.03.12"]
[Round "3"]
[White "crazyluzhinTh3"]
[Black "dodorox"]
[Result "1-0"]
[WhiteElo "2571"]
[BlackElo "2158"]
[TimeControl "180+1"]
[EndTime "14:25:27 PDT"]
[Termination "crazyluzhinTh3 won on time"]

1. e4 {[%clk 0:02:56.1]} 1... e6 {[%clk 0:02:59.5]} 2. d4 {[%clk 0:02:55.9]}
2... d5 {[%clk 0:02:59.8]} 3. Nc3 {[%clk 0:02:56.6]} 3... Nf6 {[%clk 0:02:58.7]}
4. Bg5 {[%clk 0:02:57.2]} 4... dxe4 {[%clk 0:02:58.8]} 5. Nxe4 {[%clk
0:02:56.7]} 5... Be7 {[%clk 0:02:59.2]} 6. Bxf6 {[%clk 0:02:57.3]} 6... gxf6
{[%clk 0:03:00]} 7. Nf3 {[%clk 0:02:57.9]} 7... f5 {[%clk 0:03:00.4]} 8. Nc3
{[%clk 0:02:58.3]} 8... a6 {[%clk 0:03:00]} 9. Qe2 {[%clk 0:02:55.1]} 9... b5
{[%clk 0:02:52.8]} 10. O-O-O {[%clk 0:02:55]} 10... Bb7 {[%clk 0:02:53.2]} 11.
g3 {[%clk 0:02:51.2]} 11... Qd6 {[%clk 0:02:47.8]} 12. Bg2 {[%clk 0:02:50.9]}
12... Nd7 {[%clk 0:02:45.2]} 13. Rhe1 {[%clk 0:02:50.3]} 13... O-O-O {[%clk
0:02:41.8]} 14. Bh1 {[%clk 0:02:47.1]} 14... Kb8 {[%clk 0:02:26.4]} 15. Kb1
{[%clk 0:02:47]} 15... Bf6 {[%clk 0:02:11.5]} 16. Ne5 {[%clk 0:02:47.1]} 16...
Bxh1 {[%clk 0:02:05.5]} 17. Nxf7 {[%clk 0:02:45.6]} 17... Qb4 {[%clk 0:01:11]}
18. Nxd8 {[%clk 0:02:39.8]} 18... Rxd8 {[%clk 0:01:10.8]} 19. Rxh1 {[%clk
0:02:38.1]} 19... Bxd4 {[%clk 0:01:03.4]} 20. a3 {[%clk 0:02:37.1]} 20... Qc5
{[%clk 0:01:02.2]} 21. Qxe6 {[%clk 0:02:21.4]} 21... Nf6 {[%clk 0:00:36.6]} 22.
Qxa6 {[%clk 0:02:17.9]} 22... c6 {[%clk 0:00:27.3]} 23. Qa5 {[%clk 0:02:07.4]}
23... Re8 {[%clk 0:00:23.2]} 24. Qb4 {[%clk 0:02:00.8]} 24... Qxb4 {[%clk
0:00:20.2]} 25. axb4 {[%clk 0:02:01.7]} 25... Bxc3 {[%clk 0:00:12.6]} 26. bxc3
{[%clk 0:02:02.6]} 26... Nd5 {[%clk 0:00:09.3]} 27. Kb2 {[%clk 0:02:01.2]} 27...
Re2 {[%clk 0:00:08.3]} 28. Rhf1 {[%clk 0:01:55.7]} 28... Kc7 {[%clk 0:00:03.5]}
29. Rde1 {[%clk 0:01:53.3]} 29... Rd2 {[%clk 0:00:03.5]} 30. Kc1 {[%clk
0:01:52.6]} 1-0